bitfinex/quotes_SOLUSD_20240906
["timestamp","ask_amount","ask_price","bid_price","bid_amount"]
[1725637128190,50.0,128.25,128.15,19.5069]
[1725637128356,7.8015,128.18,128.14,6.5557]
[1725637128685,7.8016,128.18,128.13,7.8045]
[1725637129270,7.8013,128.19,128.14,7.8039]
[1725637129676,20.0,128.18,128.14,7.8039]
[1725637130252,20.0,128.18,128.16,7.8027]
[1725637130961,7.7998,128.21,128.16,27.3084]
[1725637131154,7.7991,128.22,128.17,9.36175629]
[1725637131355,7.7991,128.22,128.17,7.8016]
[1725637132199,20.0,128.21,128.17,7.8016]
[1725637132352,7.7987,128.23,128.18,7.8015]
[1725637132556,7.798,128.24,128.19,1.55999739]
[1725637132879,7.798,128.24,128.19,9.36069739]
[1725637133253,7.798,128.24,128.19,1.55999739]
[1725637133586,10.72519489,128.26,128.21,7.7995]
[1725637133763,7.7971,128.26,128.21,7.7995]
[1725637134074,7.7968,128.26,128.22,7.7987]
[1725637134278,7.7968,128.26,128.21,7.7994]
[1725637134456,7.7968,128.26,128.22,7.799]
[1725637134883,7.7968,128.26,128.21,7.7995]
[1725637135466,7.7968,128.26,128.21,9.35905688]
[1725637135684,7.7968,128.26,128.22,7.799]
[1725637135986,7.7968,128.26,128.21,7.7995]
[1725637136161,27.7973,128.25,128.21,7.7995]
[1725637136485,27.7973,128.25,128.21,9.35905904]
[1725637136860,27.7973,128.25,128.21,7.7995]
[1725637137177,20.0,128.25,128.21,7.7995]
[1725637137961,20.0,128.25,128.22,7.7989]
[1725637138157,7.7962,128.27,128.22,27.2964]
[1725637138376,20.0,128.26,128.22,27.2964]
[1725637138866,20.0,128.26,128.22,27.2963]
[1725637139076,20.0,128.26,128.21,7.7994]
[1725637139277,20.0,128.28,128.21,7.7994]
[1725637139788,20.0,128.28,128.22,7.799]
[1725637140164,20.0,128.28,128.23,7.7984]
[1725637140370,20.0,128.28,128.25,7.7969]
[1725637140670,20.0,128.28,128.24,7.7976]
[1725637140865,20.0,128.28,128.24,9.35684086]
[1725637141073,27.7957,128.28,128.23,27.2943]
[1725637141862,20.0,128.28,128.23,19.4961]
[1725637142170,22.27964988,128.3,128.18,7.8013]
[1725637142171,7.7994,128.22,128.18,7.8013]
[1725637142375,7.798,128.24,128.16,45.47116122]
[1725637142559,7.7974,128.25,128.2,7.8]
[1725637142766,20.0,128.24,128.21,27.2982]
[1725637143068,7.7968,128.26,128.22,7.799]
[1725637143263,7.7964,128.27,128.23,7.7983]
[1725637143463,20.0,128.26,128.23,7.7983]
[1725637143995,38.9692,128.31,128.19,6.1275]
[1725637143996,15.7459,128.34,128.24,45.47069374]
[1725637144288,15.7459,128.34,128.27,7.7957]
[1725637144289,7.7936,128.31,128.27,7.7957]
[1725637144586,7.7926,128.33,128.28,28.84241588]
[1725637144764,7.7926,128.33,128.28,27.2836]
[1725637144970,7.7926,128.33,128.29,7.7947]
[1725637145269,7.7919,128.34,128.3,7.794]
[1725637145463,6.5132,128.36,128.29,7.7946]
[1725637145464,7.7924,128.33,128.29,7.7946]
[1725637145879,7.7924,128.33,128.29,9.35318649]
[1725637146064,7.7915,128.35,128.3,7.7937]
[1725637146259,35.3578,128.38,128.3,9.35212927]
[1725637146471,7.7907,128.36,128.31,9.35202862]
[1725637146682,7.7907,128.36,128.28,43.91135337]
[1725637146683,15.8832,128.38,128.29,1.55836718]
[1725637146887,7.7898,128.38,128.33,7.7922]
[1725637147095,57.25598176,128.42,128.37,7.7898]
[1725637147096,26.91294678,128.42,128.37,7.7898]
[1725637147282,26.91294678,128.42,128.34,19.4787]
[1725637147283,15.2296,128.42,128.34,63.39005337]
[1725637147488,50.0,128.47,128.36,19.4753]
[1725637147489,75.4736,128.47,128.36,19.4753]
[1725637147874,91.3338,128.47,128.36,19.4753]
[1725637148071,7.7874,128.42,128.36,19.4753]
[1725637148267,7.7878,128.41,128.36,27.2657]
[1725637148791,7.7888,128.39,128.35,6.0496]
[1725637149001,50.0,128.43,128.35,6.0496]
[1725637149292,7.79,128.37,128.33,19.4807]
[1725637149608,69.4697,128.41,128.31,6.1108]
[1725637149769,7.7906,128.36,128.31,6.1108]
[1725637150304,45.0,128.4,128.31,6.1108]
[1725637150469,20.0,128.39,128.32,63.39315337]
[1725637150991,20.0,128.4,128.32,19.4818]
[1725637151182,20.0,128.4,128.31,6.1108]
[1725637151183,45.0,128.39,128.31,6.1108]
[1725637151372,20.0,128.38,128.31,6.1108]
[1725637151577,7.7917,128.35,128.31,6.1108]
[1725637151971,20.0,128.38,128.29,16.4005]
[1725637151972,7.7925,128.33,128.29,16.4005]
[1725637152290,7.7907,128.36,128.3,21.04306973]
[1725637152589,19.4666,128.43,128.32,43.91135337]
[1725637152779,19.4666,128.43,128.35,7.7907]
[1725637153180,7.7883,128.4,128.35,7.7907]
[1725637153369,55.2887,128.44,128.34,63.38935337]
[1725637153370,7.7875,128.41,128.36,9.34805805]
[1725637153570,7.7883,128.4,128.36,7.7903]
[1725637153783,7.7883,128.4,128.35,14.2901]
[1725637153983,7.7877,128.41,128.36,9.34806031]
[1725637154584,7.7877,128.41,128.36,7.7903]
[1725637155185,7.7882,128.4,128.36,7.7903]
[1725637155498,16.36,128.44,128.35,6.4991]
[1725637155499,7.7894,128.38,128.35,6.4991]
[1725637155674,7.7906,128.36,128.32,14.1947]
[1725637155871,7.7912,128.35,128.32,6.4019]
[1725637156073,19.471,128.4,128.32,6.4019]
[1725637156074,7.7907,128.36,128.32,14.1946]
[1725637156604,7.7907,128.36,128.32,6.4019]
[1725637156897,7.7913,128.35,128.32,6.4019]
[1725637157395,7.7907,128.36,128.32,6.4019]
[1725637157786,19.4738,128.38,128.29,22.8857]
[1725637158107,19.4798,128.34,128.26,6.4852]
[1725637158283,7.7943,128.3,128.26,6.4852]
[1725637158598,7.7949,128.29,128.26,6.4852]
[1725637158971,7.7943,128.3,128.26,6.4852]
[1725637159198,19.4798,128.34,128.26,6.4852]
[1725637159507,7.7934,128.32,128.28,7.7953]
[1725637159869,7.7924,128.33,128.29,7.7948]
[1725637160085,39.4755,128.37,128.29,19.4864]
[1725637160282,7.7922,128.34,128.29,27.2811]
[1725637160480,19.4817,128.33,128.26,6.4852]
[1725637160683,7.7943,128.3,128.26,6.4852]
[1725637161302,7.7936,128.31,128.26,14.2817]
[1725637161470,20.0,128.3,128.25,19.4924]
[1725637161671,7.7954,128.28,128.22,41.489]
[1725637161871,7.7954,128.28,128.23,7.7982]
[1725637162296,7.7964,128.27,128.22,49.288]
[1725637162472,7.7951,128.29,128.24,7.7976]
[1725637162669,20.0,128.28,128.24,7.7976]
[1725637162889,108.4373,128.35,128.24,19.4941]
[1725637163082,65.0,128.34,128.24,21.05325008]
[1725637163295,7.7947,128.3,128.25,7.7972]
[1725637163480,20.0,128.29,128.25,7.7972]
[1725637164285,20.0,128.29,128.26,7.7966]
[1725637164900,20.0,128.29,128.26,7.7965]
[1725637165099,45.0,128.34,128.27,7.796]
[1725637165310,7.7937,128.31,128.26,7.7964]
[1725637165597,7.7923,128.34,128.29,7.7943]
[1725637165902,7.7901,128.37,128.32,7.7929]
[1725637166197,7.7901,128.37,128.3,85.26755337]
[1725637166391,7.7906,128.36,128.3,85.26755337]
[1725637166590,7.7906,128.36,128.31,7.7934]
[1725637166989,7.7912,128.35,128.31,7.7934]
[1725637167486,7.7912,128.35,128.3,93.06165337]
[1725637167698,7.7912,128.35,128.3,49.1503]
[1725637167904,7.7918,128.34,128.3,49.1503]
[1725637168197,69.4725,128.39,128.3,49.1503]
[1725637168198,7.7913,128.35,128.3,49.1503]
[1725637168398,7.7919,128.34,128.3,33.5227]
[1725637169580,7.7924,128.33,128.27,25.5993]
[1725637169776,7.7924,128.33,128.28,7.7952]
[1725637170099,7.7912,128.35,128.31,7.7934]
[1725637170279,7.7912,128.35,128.3,7.7938]
[1725637170280,20.0,128.34,128.3,7.7938]
[1725637170481,20.0,128.34,128.29,19.4862]
[1725637170682,20.0,128.35,128.29,19.4862]
[1725637170903,20.0,128.35,128.33,7.792]
[1725637171093,35.6879,128.4,128.32,7.7928]
[1725637171094,7.7908,128.36,128.32,7.7928]
[1725637171487,19.4715,128.4,128.33,9.35037921]
[1725637171693,7.79,128.37,128.33,7.7922]
[1725637172201,7.7895,128.38,128.34,7.7915]
[1725637172677,20.0,128.37,128.34,7.7915]
[1725637172873,20.0,128.37,128.35,7.7911]
[1725637173122,7.7889,128.39,128.35,7.7911]
[1725637173294,7.7877,128.41,128.35,25.5909]
[1725637173493,7.7869,128.42,128.37,19.4746]
[1725637173698,7.7868,128.43,128.38,9.34649326]
[1725637173880,7.7868,128.43,128.38,1.55759326]
[1725637174077,16.3963,128.49,128.4,7.7875]
[1725637174078,35.8535,128.49,128.4,7.7875]
[1725637174280,35.8535,128.49,128.4,7.788]
[1725637174281,7.7861,128.44,128.4,7.788]
[1725637174503,7.7861,128.44,128.39,27.2594]
[1725637174883,7.7852,128.45,128.41,19.4683]
[1725637176111,7.7852,128.45,128.41,27.2557]
[1725637176591,69.4567,128.5,128.41,27.2557]
[1725637176592,7.7858,128.44,128.41,19.4683]
[1725637176778,7.7852,128.45,128.41,19.4683]
[1725637176985,2.81335587,128.47,128.39,7.7886]
[1725637177183,7.7861,128.44,128.4,9.34517951]
[1725637177397,7.7861,128.44,128.4,7.7879]
[1725637177715,19.4618,128.46,128.38,21.02983108]
[1725637177904,65.0,128.45,128.38,19.4726]
[1725637179191,65.0,128.45,128.35,41.222]
[1725637179192,19.4648,128.44,128.35,41.222]
[1725637179512,65.0,128.43,128.35,41.222]
[1725637179803,65.0,128.43,128.38,43.91135337]
[1725637179804,20.0,128.43,128.38,43.91135337]
[1725637179985,7.7849,128.46,128.4,43.91135337]
[1725637180187,7.7849,128.46,128.42,7.7865]
[1725637180188,20.0,128.45,128.42,7.7865]
[1725637180501,7.7839,128.47,128.42,1.55696206]
[1725637180702,7.7846,128.46,128.41,27.2557]
[1725637180910,7.7852,128.45,128.41,19.4684]
[1725637181413,7.7852,128.45,128.42,1.55719669]
[1725637181709,7.7852,128.45,128.41,27.2557]
[1725637183101,7.7859,128.44,128.4,7.7879]
[1725637184019,7.7864,128.43,128.39,7.7886]
[1725637184394,19.4614,128.46,128.38,63.38355337]
[1725637184597,7.7867,128.43,128.39,7.7887]
[1725637185038,7.7882,128.4,128.36,51.70145337]
[1725637185198,19.4648,128.44,128.36,51.70145337]
[1725637185199,20.0,128.42,128.36,43.91135337]
[1725637185402,27.7875,128.42,128.38,7.7893]
[1725637185592,7.7851,128.45,128.41,7.7873]
[1725637185916,22.24971876,128.47,128.42,1.5571872]
[1725637186216,22.24971876,128.47,128.41,7.7875]
[1725637186217,7.7853,128.45,128.41,7.7875]
[1725637187927,7.7853,128.45,128.41,28.81332608]
[1725637188090,27.7846,128.46,128.42,7.7869]
[1725637188291,7.784,128.47,128.43,27.2515]
[1725637188714,7.784,128.47,128.43,28.80828068]
[1725637189012,7.7835,128.48,128.43,28.80828068]
[1725637189213,7.7839,128.47,128.44,7.7856]
[1725637189396,7.7839,128.47,128.43,27.2514]
[1725637189596,7.7839,128.47,128.43,19.4653]
[1725637189597,7.7841,128.47,128.43,19.4653]
[1725637189795,7.7841,128.47,128.43,27.2514]
[1725637190209,7.7846,128.46,128.43,19.4653]
[1725637190393,50.0,128.5,128.4,19.4689]
[1725637190601,7.7861,128.44,128.4,27.2568]
[1725637190801,7.7863,128.43,128.4,19.4689]
[1725637191235,45.0,128.49,128.4,19.4689]
[1725637191409,20.0,128.48,128.42,19.4669]
[1725637191619,7.7845,128.46,128.42,27.2534]
[1725637191827,7.7845,128.46,128.42,19.4669]
[1725637192902,7.7845,128.46,128.4,53.25627486]
[1725637193405,7.786,128.44,128.4,43.91135337]
[1725637193603,7.786,128.44,128.39,33.6528]
[1725637194621,7.7853,128.45,128.4,9.34514692]
[1725637195006,7.7846,128.46,128.4,53.25650029]
[1725637195395,7.7846,128.46,128.41,7.7875]
[1725637196408,20.0,128.49,128.41,21.02505316]
[1725637196606,7.7843,128.47,128.42,45.0]
[1725637196815,7.7843,128.47,128.42,52.7869]
[1725637197306,7.7831,128.49,128.43,28.80836776]
[1725637197520,19.454,128.51,128.43,28.80816725]
[1725637197521,7.7833,128.48,128.43,28.80816725]
[1725637198233,7.7833,128.48,128.43,27.2516]
[1725637198605,7.7827,128.49,128.44,7.7856]
[1725637198908,7.7827,128.49,128.45,1.55656834]
[1725637199119,7.7834,128.48,128.43,27.2517]
[1725637199498,19.457,128.49,128.42,15.7889]
[1725637199727,19.457,128.49,128.43,1.55701119]
[1725637199728,20.0,128.47,128.43,1.55701119]
[1725637199925,27.7843,128.47,128.43,1.55701119]
[1725637200103,7.7849,128.46,128.42,17.34578467]
[1725637200311,39.4598,128.47,128.39,6.3936]
[1725637200615,7.7851,128.45,128.4,1.55715607]
[1725637200938,27.784,128.47,128.42,7.7865]
[1725637201108,20.0,128.47,128.42,1.55675947]
[1725637201306,20.0,128.47,128.43,1.55675947]
[1725637201629,20.0,128.49,128.44,1.55678907]
[1725637201843,55.0234,128.53,128.43,35.02671153]
[1725637201844,7.7845,128.47,128.43,35.02671153]
[1725637202121,53.89634678,128.55,128.45,6.3784]
[1725637202122,3.89634678,128.55,128.45,6.3784]
[1725637202334,7.781,128.52,128.46,54.34022084]
[1725637202513,23.4200169,128.57,128.48,43.7709939]
[1725637202514,20.2873169,128.57,128.48,43.7709939]
[1725637202752,20.2873169,128.57,128.49,54.33832188]
[1725637202753,7.7795,128.55,128.49,54.33832188]
[1725637202906,7.7797,128.54,128.49,54.33832188]
[1725637203111,7.7802,128.53,128.48,71.0120939]
[1725637203329,7.7802,128.53,128.48,19.4579]
[1725637203538,0.8413169,128.57,128.5,7.7819]
[1725637203833,0.8413169,128.57,128.49,54.33832109]
[1725637204015,20.8413169,128.57,128.49,54.33832109]
[1725637204220,7.7803,128.53,128.48,19.4579]
[1725637204609,7.7803,128.53,128.48,21.01392153]
[1725637204810,7.7797,128.54,128.49,45.0]
[1725637205011,7.7797,128.54,128.48,27.2409]
[1725637205012,7.7803,128.53,128.48,28.79687077]
[1725637205227,7.7803,128.53,128.49,45.0]
[1725637206030,7.7798,128.54,128.49,45.0]
[1725637206224,7.7792,128.55,128.49,46.55592363]
[1725637206435,0.8413169,128.57,128.51,6.4136]
[1725637206725,0.8413169,128.57,128.52,46.55549703]
[1725637207127,0.8413169,128.57,128.53,59.4849939]
[1725637207319,0.8413169,128.57,128.54,1.55536837]
[1725637207501,8.6193169,128.57,128.53,59.4849939]
[1725637207705,7.7786,128.56,128.53,15.714]
[1725637208128,7.7786,128.56,128.51,6.4136]
[1725637208890,7.7792,128.55,128.51,6.4136]
[1725637209032,7.7785,128.56,128.51,14.195]
[1725637209535,8.6193169,128.57,128.52,1.55561998]
[1725637209719,8.6193169,128.57,128.52,54.33641998]
[1725637210228,0.8413169,128.57,128.55,51.5499939]
[1725637210471,0.8413169,128.57,128.56,54.33339427]
[1725637210636,0.8413169,128.57,128.56,69.40979427]
[1725637212008,0.8413169,128.57,128.56,67.8548]
[1725637212203,0.8413169,128.57,128.56,60.0764]
[1725637212937,0.8413169,128.57,128.55,1.55511639]
[1725637213125,0.8413169,128.57,128.55,45.0]
[1725637213340,0.8413169,128.57,128.55,46.55514513]
[1725637213837,0.8413169,128.57,128.55,46.55517596]
[1725637214004,0.8413169,128.57,128.55,54.33407596]
[1725637214409,0.8413169,128.57,128.55,46.55511392]
[1725637214632,0.8413169,128.57,128.55,45.0]
[1725637214828,0.8413169,128.57,128.54,1.55510057]
[1725637215031,0.8413169,128.57,128.52,16.5398]
[1725637215223,7.779,128.55,128.52,16.5398]
[1725637215437,7.7785,128.56,128.52,16.5398]
[1725637215932,7.7794,128.55,128.52,16.5398]
[1725637217025,20.2862169,128.57,128.51,386.6136]
[1725637217314,0.8413169,128.57,128.52,1.55567396]
[1725637217522,0.8413169,128.57,128.53,51.5511939]
[1725637217715,20.8413169,128.57,128.54,46.55531583]
[1725637218017,20.8413169,128.57,128.51,386.6136]
[1725637218235,7.7791,128.55,128.51,386.6136]
[1725637218428,20.8413169,128.57,128.52,1.55571039]
[1725637218429,7.7786,128.56,128.52,1.55571039]
[1725637218735,20.8413169,128.57,128.51,449.8380939]
[1725637218925,7.7788,128.56,128.51,457.6192939]
[1725637219733,0.8413169,128.57,128.51,386.6136]
[1725637219926,7.7796,128.54,128.51,386.6136]
[1725637220130,7.7796,128.54,128.51,6.4136]
[1725637220712,7.7793,128.55,128.52,1.55583336]
[1725637220929,7.7793,128.55,128.51,7.96920794]
[1725637221143,7.7793,128.55,128.51,6.4136]
[1725637221330,7.7787,128.56,128.51,14.195]
[1725637221513,8.6191169,128.57,128.51,57.9657939]
[1725637221714,7.7791,128.55,128.51,6.4136]
[1725637221918,7.7797,128.54,128.51,6.4136]
[1725637222122,7.7803,128.53,128.49,1.55574461]
[1725637222426,7.7803,128.53,128.48,29.9844]
[1725637222622,7.7803,128.53,128.48,73.7553939]
[1725637222926,19.448,128.55,128.48,6.0738]
[1725637223132,19.4539,128.51,128.45,22.8148]
[1725637223328,45.8413169,128.57,128.45,22.8148]
[1725637223511,20.0,128.56,128.46,1.55625306]
[1725637223712,20.0,128.56,128.45,22.8148]
[1725637223713,7.7825,128.5,128.45,32.1560183]
[1725637223913,7.7834,128.48,128.45,6.4657]
[1725637224137,19.4524,128.52,128.45,15.80702928]
[1725637224337,19.4488,128.55,128.47,7.7835]
[1725637224637,27.7801,128.54,128.48,53.10979165]
[1725637224943,7.7791,128.55,128.5,51.5529939]
[1725637225145,7.7786,128.56,128.51,1.55569304]
[1725637225312,7.7786,128.56,128.52,1.55559307]
[1725637225645,7.7786,128.56,128.51,54.33699706]
[1725637226143,7.7786,128.56,128.51,89.3051328]
[1725637226312,7.7791,128.55,128.51,81.5237328]
[1725637226513,7.7786,128.56,128.52,1.55569076]
[1725637226924,0.8413169,128.57,128.53,42.74793574]
[1725637227211,0.8413169,128.57,128.55,42.74713574]
[1725637227434,53.9038,128.66,128.58,19.4421]
[1725637227438,15.0397,128.66,128.58,19.4421]
[1725637227634,19.4241,128.71,128.61,7.7753]
[1725637227635,7.7718,128.67,128.61,7.7753]
[1725637227914,7.7712,128.69,128.62,54.32878564]
[1725637228114,3.75158478,128.7,128.63,1.55420458]
[1725637228342,3.75158478,128.7,128.61,7.7751]
[1725637228343,7.7723,128.67,128.61,1.55437862]
[1725637228528,7.7723,128.67,128.61,9.32977862]
[1725637228834,7.7723,128.67,128.62,45.0]
[1725637229039,7.7723,128.67,128.61,9.32977862]
[1725637229243,7.7736,128.64,128.62,1.55441522]
[1725637229427,7.7749,128.62,128.57,19.4441]
[1725637229625,19.4279,128.69,128.58,1.55489152]
[1725637229938,7.7736,128.64,128.58,9.33169152]
[1725637230125,20.0,128.63,128.58,9.33169152]
[1725637230320,20.0,128.63,128.58,1.55489152]
[1725637230530,20.0,128.63,128.57,28.77611871]
[1725637230744,7.7737,128.64,128.58,1.55481554]
[1725637230945,20.0,128.63,128.58,1.55481554]
[1725637231239,7.7737,128.64,128.58,46.55481554]
[1725637231422,19.4306,128.67,128.56,51.24840189]
[1725637231626,7.7759,128.61,128.56,7.58044891]
[1725637232546,7.7768,128.59,128.55,1.55507392]
[1725637232742,7.7768,128.59,128.54,21.0039845]
[1725637233133,20.0,128.58,128.54,21.0039845]
[1725637233446,20.0,128.58,128.54,1.5552845]
[1725637233749,27.7766,128.59,128.55,1.55536899]
[1725637233944,20.0,128.59,128.55,1.55536899]
[1725637234246,7.7749,128.62,128.55,1.55536899]
[1725637234430,27.7757,128.61,128.55,1.55536899]
[1725637234941,27.7757,128.61,128.55,46.55536899]
[1725637235126,7.7761,128.6,128.55,46.55536899]
[1725637235326,20.0,128.59,128.55,46.55536899]
[1725637235825,7.7756,128.61,128.55,54.33436899]
[1725637236026,20.0,128.6,128.55,54.33436899]
[1725637236640,20.0,128.6,128.55,46.55536899]
[1725637237322,20.0,128.6,128.56,43.66795298]
[1725637237523,20.0,128.61,128.57,45.0]
[1725637237820,7.7758,128.61,128.57,45.0]
[1725637238141,20.0,128.6,128.56,45.22290713]
[1725637238316,27.7761,128.6,128.55,1.55505718]
[1725637238520,20.0,128.6,128.55,1.55505718]
[1725637238735,20.0,128.6,128.55,46.55505718]
[1725637238943,7.7756,128.61,128.55,54.33405718]
[1725637239160,7.7749,128.62,128.55,54.33405718]
[1725637239326,27.7755,128.61,128.55,54.33405718]
[1725637240024,7.7762,128.6,128.55,46.55505718]
[1725637240426,20.0,128.61,128.55,46.55505718]
[1725637240427,7.7777,128.58,128.55,1.55505718]
[1725637240623,7.7774,128.58,128.53,1.55531721]
[1725637241128,39.4391,128.61,128.53,1.55531721]
[1725637241428,7.7777,128.58,128.53,1.55531721]
[1725637241637,19.4419,128.59,128.52,6.1006]
[1725637241841,20.0,128.58,128.52,6.1006]
[1725637242031,7.7786,128.56,128.52,6.1006]
[1725637242643,20.0,128.58,128.52,6.1006]
[1725637242829,7.7793,128.55,128.49,7.7826]
[1725637243026,7.7793,128.55,128.5,1.55563324]
[1725637243335,7.7797,128.54,128.5,1.55563324]
[1725637243536,20.0,128.58,128.5,21.01073324]
[1725637243735,22.84469438,128.58,128.5,1.55563324]
[1725637244041,7.7798,128.54,128.5,1.55584446]
[1725637244448,7.7792,128.55,128.5,1.55584446]
[1725637244624,7.7797,128.54,128.5,1.55584446]
[1725637245039,7.7791,128.55,128.5,1.55584446]
[1725637245348,16.1681,128.62,128.52,43.66795298]
[1725637245549,7.7762,128.6,128.54,43.66795298]
[1725637245849,7.7762,128.6,128.55,46.55515269]
[1725637246555,7.7766,128.59,128.55,46.55515269]
[1725637246851,7.7766,128.59,128.55,46.55524165]
[1725637247028,7.7766,128.59,128.55,46.55519824]
[1725637247237,7.776,128.61,128.55,46.55519824]
[1725637247530,7.776,128.61,128.55,54.33409824]
[1725637247727,7.776,128.6,128.55,46.55519824]
[1725637247943,7.7772,128.58,128.54,43.66795298]
[1725637248142,48.2845937,128.65,128.55,46.55515531]
[1725637248338,7.7764,128.6,128.55,46.55515531]
[1725637248861,7.7756,128.61,128.55,54.33415531]
[1725637249832,7.777,128.59,128.55,46.55515531]
[1725637250048,19.4388,128.61,128.52,43.66795298]
[1725637250250,20.0,128.58,128.53,1.55539036]
[1725637250550,27.7774,128.58,128.53,1.55539036]
[1725637251233,27.7774,128.58,128.53,46.55539036]
[1725637252145,7.7786,128.56,128.5,51.44995298]
[1725637252454,7.7786,128.56,128.51,1.55554694]
[1725637252636,20.0,128.58,128.5,43.66795298]
[1725637252637,7.7791,128.55,128.5,43.66795298]
[1725637252949,7.7786,128.56,128.5,53.00555953]
[1725637253152,7.779,128.55,128.5,53.00555953]
[1725637253356,7.779,128.55,128.5,45.22355953]
[1725637253670,7.7786,128.56,128.5,53.00555953]
[1725637254156,2.84205834,128.58,128.52,43.66795298]
[1725637254335,20.0,128.59,128.53,1.55539055]
[1725637254529,7.7775,128.58,128.52,51.44875298]
[1725637254731,20.0,128.59,128.54,43.66795298]
[1725637254948,7.774,128.64,128.58,51.44505298]
[1725637255154,2.89804823,128.65,128.59,1.55472206]
[1725637255481,22.7072169,128.7,128.59,46.55472206]
[1725637255761,7.7736,128.64,128.59,46.55472206]
[1725637256249,7.7736,128.64,128.6,43.66795298]
[1725637256856,7.7743,128.63,128.59,45.0]
[1725637257065,7.7743,128.63,128.58,1.55460315]
[1725637257066,7.7743,128.63,128.58,90.22255613]
[1725637257367,19.4296,128.67,128.58,88.66795298]
[1725637257368,7.7749,128.62,128.58,88.66795298]
[1725637258044,7.7744,128.63,128.58,88.66795298]
[1725637258564,7.7748,128.62,128.58,88.66795298]
[1725637259254,7.7744,128.63,128.58,88.66795298]
[1725637259560,7.7748,128.62,128.58,88.66795298]
[1725637260257,7.7743,128.63,128.58,88.66795298]
[1725637261032,7.7748,128.62,128.58,88.66795298]
[1725637261455,38.8555,128.69,128.59,27.218]
[1725637261456,19.4265,128.69,128.59,27.218]
[1725637261657,7.774,128.64,128.6,30.0]
[1725637261859,22.7072169,128.7,128.6,30.0]
[1725637261860,7.7754,128.61,128.6,30.0]
[1725637262165,50.0,128.68,128.6,30.0]
[1725637262349,19.432,128.66,128.6,30.0]
[1725637262554,7.774,128.64,128.6,30.0]
[1725637262752,7.774,128.64,128.58,9.33193407]
[1725637262950,7.7732,128.65,128.59,7.7766]
[1725637263158,7.7736,128.64,128.58,70.88775298]
[1725637263671,7.7736,128.64,128.59,45.0]
[1725637263970,19.4272,128.69,128.59,54.33123488]
[1725637263971,7.7731,128.65,128.59,54.33123488]
[1725637264342,22.7072169,128.7,128.61,6.2169]
[1725637264541,16.2444169,128.7,128.62,46.55437431]
[1725637265035,7.7728,128.66,128.62,45.0]
[1725637265239,8.6114169,128.7,128.64,43.66795298]
[1725637265564,0.8413169,128.7,128.65,46.55396316]
[1725637265748,0.8413169,128.7,128.66,63.09855298]
[1725637265949,0.8413169,128.7,128.67,46.55358876]
[1725637266163,0.8413169,128.7,128.68,64.64872798]
[1725637266340,0.8413169,128.7,128.69,51.5163]
[1725637266751,0.8413169,128.7,128.69,6.5163]
[1725637266952,0.8413169,128.7,128.65,33.7207]
[1725637267148,0.8413169,128.7,128.66,45.0]
[1725637267345,0.8413169,128.7,128.67,7.7715]
[1725637267546,0.8413169,128.7,128.66,88.66795298]
[1725637267747,0.8413169,128.7,128.65,6.5163]
[1725637268150,0.8413169,128.7,128.68,43.66795298]
[1725637268374,0.8413169,128.7,128.69,46.55339612]
[1725637268685,16.1472,128.8,128.7,6.4779]
[1725637268849,38.28719387,128.81,128.75,43.66795298]
[1725637269055,46.05059387,128.81,128.76,1.55262184]
[1725637269259,38.7949341,128.82,128.77,1.55262184]
[1725637269465,38.7949341,128.82,128.76,46.5525548]
[1725637269646,38.28719387,128.81,128.74,28.73837383]
[1725637269847,20.2474169,128.83,128.73,59.05865298]
[1725637270159,7.7687,128.73,128.68,1.55302694]
[1725637270492,19.4132,128.78,128.69,1.55356728]
[1725637270645,19.4167,128.76,128.69,1.55356728]
[1725637270849,19.4167,128.76,128.65,6.5002]
[1725637270850,7.7699,128.71,128.66,45.22151354]